Cogmind - Beta 9.6 @@@ ROGUE MODE // 2020.07.11 @ 22:37:43 Player: Weird_Skeleton Result: Destroyed by G-34 Mercenary with Small Laser Performance ------------- Evolutions (1) 500 Regions Visited (3) 600 Robots Destroyed (6) 30 Value Destroyed (180) 180 Prototype IDs (0) 0 Alien Tech Used (0) 0 Bonus (200) 200 TOTAL SCORE: 1510 Bonus ------- Pacifist 200 Cogmind --------- Core Integrity 0/400 Matter 290/300 Energy 100/100 System Corruption 0% Temperature Cool (6) Movement Core (150) Ox2 Location -9/Materials Parts ------- > --- POWER (1) -------- (None) > --- PROPULSION (4) --- (None) > --- UTILITY (2) ------ Small Storage Unit Visual Processing Unit > --- WEAPON (2) ------- Axe > --- INVENTORY (6) ---- Light Nuclear Core Aluminum Leg Hardened Light Armor Plating EM Shotgun Small Laser Axe Peak State ------------ > --- POWER ------------ Ion Engine > --- PROPULSION ------- Aluminum Leg Aluminum Leg Wheel Compact Wheel > --- UTILITY ---------- Small Storage Unit Visual Processing Unit > --- WEAPON ----------- Axe Axe > --- INVENTORY -------- Hardened Light Armor Plating Medium Laser Small Laser Axe Axe [Rating: 15] Favorites ----------- Power Ion Engine Engine Ion Engine Propulsion Aluminum Leg Leg Aluminum Leg Wheel Compact Wheel Utility Small Storage Unit Device Tractor Beam Storage Small Storage Unit Processor Visual Processing Unit Protection Hardened Light Armor Plating Weapon Medium Laser Energy Gun Medium Laser Slashing Weapon Axe Build | -11 -10 -10 -9 ------- Run | Scr Mat Min Mat Slots Evolved 2 | . . . 2 Power . | . . . . Propulsion 2 | . . . 2 Utility . | . . . . Weapon . | . . . . Parts Attached 19 | 6 1 . 12 Power 2 | 1 . . 1 Engine 2 | 1 . . 1 Core . | . . . . Reactor . | . . . . Propulsion 6 | 2 . . 4 Treads . | . . . . Leg 4 | . . . 4 Wheel 2 | 2 . . . Hover . | . . . . Flight . | . . . . Utility 5 | 1 1 . 3 Device 1 | . 1 . . Storage 2 | 1 . . 1 Processor 1 | . . . 1 Hackware . | . . . . Protection 1 | . . . 1 Artifact . | . . . . Weapon 6 | 2 . . 4 Energy Gun 3 | 2 . . 1 Energy Cannon . | . . . . Ballistic Gun . | . . . . Ballistic Cannon . | . . . . Launcher . | . . . . Special Weapon . | . . . . Impact Weapon . | . . . . Slashing Weapon 3 | . . . 3 Piercing Weapon . | . . . . Special Melee Weapon . | . . . . Unidentified Prototypes . | . . . . Parts Lost 5 | . . . 5 Power 1 | . . . 1 Propulsion 3 | . . . 3 Utility . | . . . . Weapon 1 | . . . 1 Highest Loss Streak 5 | . . . 5 Average Slot Usage (%) 89 | . 95 100 82 Engine 11 | . 14 14 8 Leg 12 | . . . 22 Wheel 18 | . 28 28 10 Device 7 | . 10 14 2 Storage 11 | . 14 14 10 Processor 4 | . . . 8 Energy Gun 18 | . 28 28 11 Slashing Weapon 4 | . . . 7 Naked Turns . | . . . . Heaviest Build 15 | 12 13 13 15 Greatest Support 30 | 26 26 26 30 Greatest Overweight (x) 2 | . . . 2 Average Overweight (x) . | . . . . Largest Inventory Capacity 6 | 6 6 6 6 Average Capacity 5 | 5 6 6 5 Most Carried 6 | 5 5 6 6 Average Carried 4 | 2 4 5 5 Final Capacity 6 | 6 6 6 6 Final Carried 6 | 4 4 6 6 Class Distribution -------------------- 100% | Mutant Dominant Class ---------------- Mutant | -10/Materials Mutant | -10/Mines Mutant | -9/Materials Resources | -11 -10 -10 -9 ----------- Run | Scr Mat Min Mat Matter Collected 361 | 94 . 95 172 Remotely 95 | . . 95 . Salvage Created 232 | . . . 232 Parts 10 | . . . 10 Haulers Intercepted . | . . . . Recyclers Shooed . | . . . . Parts Field Recycled . | . . . . Retrieved Matter . | . . . . Parts Self-Destructed . | . . . . Prevented . | . . . . Kills | -11 -10 -10 -9 ------- Run | Scr Mat Min Mat Combat Hostiles Destroyed 6 | . . . 6 Melee 6 | . . . 6 Classes Destroyed 3 | . . . 3 Swarmer 2 | . . . 2 Grunt 3 | . . . 3 Sentry 1 | . . . 1 Best Kill Streak 4 | . . . 4 Combat Bots Only 4 | . . . 4 Max Kills in Single Turn 1 | . . . 1 Gunslinging . | . . . . Exploded . | . . . . Melee 1 | . . . 1 Uniques/NPCs Destroyed . | . . . . Combat | -11 -10 -10 -9 -------- Run | Scr Mat Min Mat Damage Taken 1012 | . . 66 946 Core 412 | . . 2 410 Absorbed by Shields . | . . . . Core Remaining (%) 99 | 100 . 99 . Volleys Fired 1 | . 1 . . Largest 2 | . 2 . . Hottest 90 | . 90 . . Shots Fired 2 | . 2 . . Gun 2 | . 2 . . Cannon . | . . . . Launcher . | . . . . Special . | . . . . Kinetic . | . . . . Thermal 2 | . 2 . . Explosive . | . . . . Electromagnetic . | . . . . Robot Hit Streak 1 | . 1 . . Robot Miss Streak 1 | . 1 . . Penetration Max . | . . . . Secondary Targets . | . . . . Shots Hit Robots 11 | . 1 . 10 Core Hits 6 | . . . 6 Critical Hits . | . . . . Critical Kills . | . . . . Critical Parts Destroyed . | . . . . Melee Attacks 15 | . . . 15 Impact . | . . . . Slashing 15 | . . . 15 Piercing . | . . . . Sneak Attacks . | . . . . Combat Hostiles . | . . . . Follow-up Attacks . | . . . . Damage Inflicted 346 | . . 3 343 Guns . | . . . . Cannons . | . . . . Explosions . | . . . . Melee 343 | . . . 343 Ramming 3 | . . 3 . Kinetic . | . . . . Thermal . | . . . . Explosive . | . . . . Electromagnetic . | . . . . Impact . | . . . . Slashing 343 | . . . 343 Piercing . | . . . . Highest Corruption . | . . . . Average Corruption . | . . . . Corruption Purged . | . . . . Overload Shots . | . . . . Overflow Damage 8 | . . . 8 Projectiles . | . . . . Explosions . | . . . . Melee 8 | . . . 8 Knockbacks . | . . . . Impact . | . . . . Kinetic . | . . . . Secondary . | . . . . Self-Inflicted Damage 1 | . . 1 . Shots . | . . . . Rammed 1 | . . 1 . Targets Rammed 1 | . . 1 . Kicked . | . . . . Crushed . | . . . . Highest Temperature 30 | . 30 . 2 Average Temperature 14 | . 17 . 2 Received Heat Transfer 255 | . . . 255 Siege Activations . | . . . . Robots Corrupted . | . . . . Combat Hostiles . | . . . . Parts Fried . | . . . . Impact Corruptions . | . . . . Robots Melted . | . . . . Combat Hostiles . | . . . . Parts Melted . | . . . . Heat Transferred . | . . . . Parts Sabotaged . | . . . . Parts Stolen . | . . . . Parts Stripped . | . . . . Power Chain Reactions . | . . . . Missiles Intercepted . | . . . . Alert | -11 -10 -10 -9 ------- Run | Scr Mat Min Mat Peak Influence 175 | . 15 5 175 Average Influence 44 | . 10 5 82 Maximum Alert Level . | . . . . Low Security (%) 100 | 100 100 100 100 Level 1 . | . . . . Level 2 . | . . . . Level 3 . | . . . . Level 4 . | . . . . Level 5 . | . . . . High Security . | . . . . Max Security . | . . . . Squads Dispatched 1 | . 1 . . Investigation . | . . . . Extermination . | . . . . Reinforcement 1 | . 1 . . Assault . | . . . . Garrison . | . . . . Intercept . | . . . . Construction Impeded . | . . . . Haulers Reinforced . | . . . . Stealth | -11 -10 -10 -9 --------- Run | Scr Mat Min Mat Distress Signals 2 | . . . 2 Communications Jammed . | . . . . Distress Signals . | . . . . Times Spotted 19 | . 2 2 15 Peak Tracking Total 8 | . 2 2 8 Tactical Retreats 1 | . . . 1 Traps | -11 -10 -10 -9 ------- Run | Scr Mat Min Mat Traps Triggered . | . . . . Indirectly . | . . . . Trap Hack Attempts . | . . . . Triggered . | . . . . Disarmed . | . . . . Reprogrammed . | . . . . Reused . | . . . . Traps Extracted . | . . . . Installed . | . . . . Triggered . | . . . . Machines | -11 -10 -10 -9 ---------- Run | Scr Mat Min Mat Machines Disabled . | . . . . Max in Single Turn . | . . . . Machines Sabotaged . | . . . . Garrisons Compromised . | . . . . Overloaded Fab Kills . | . . . . Fab Network Shutdowns . | . . . . Hacking | -11 -10 -10 -9 --------- Run | Scr Mat Min Mat Machines Accessed 1 | . . . 1 Terminals 1 | . . . 1 Fabricators . | . . . . Repair Stations . | . . . . Recycling Units . | . . . . Scanalyzers . | . . . . Garrison Access . | . . . . Total Hacks 2 | . . . 2 Successful 2 | . . . 2 Failed . | . . . . Catastrophic . | . . . . Database Lockouts . | . . . . Manual . | . . . . Terminals 2 | . . . 2 Fabricators . | . . . . Repair Stations . | . . . . Recycling Units . | . . . . Scanalyzers . | . . . . Garrison Access . | . . . . Terminal Hacks 2 | . . . 2 Emergency Access Points 1 | . . . 1 Registered Prototypes 1 | . . . 1 Fabricator Hacks . | . . . . Repair Station Hacks . | . . . . Recycling Unit Hacks . | . . . . Scanalyzer . | . . . . Garrison Access Hacks . | . . . . Unauthorized Hacks . | . . . . Terminals . | . . . . Fabricators . | . . . . Repair Stations . | . . . . Recycling Units . | . . . . Scanalyzers . | . . . . Garrison Access . | . . . . Data Cores Recovered . | . . . . Used . | . . . . Hacking Detections . | . . . . Full Trace Events . | . . . . Feedback Events . | . . . . Feedback Blocked . | . . . . Robot Schematics Acquired . | . . . . Robots Built . | . . . . Matter . | . . . . Time . | . . . . Total Robot Build Rating . | . . . . Part Schematics Acquired . | . . . . Parts Built . | . . . . Matter . | . . . . Time . | . . . . Total Part Build Rating . | . . . . Parts Repaired . | . . . . Time . | . . . . Parts Recycled . | . . . . Recycled Matter . | . . . . Retrieved Matter . | . . . . Retrieved Components . | . . . . Parts Scanalyzed . | . . . . Part Schematics Acquired . | . . . . Parts Damaged . | . . . . Bothacking | -11 -10 -10 -9 ------------ Run | Scr Mat Min Mat Used RIF Installer . | . . . . Robots Hacked . | . . . . Non-combat . | . . . . Combat . | . . . . Robot Hacks Applied . | . . . . Relay Couplers Released . | . . . . Robots Rewired . | . . . . Allies Hacked . | . . . . Hacks Repelled . | . . . . Allies | -11 -10 -10 -9 -------- Run | Scr Mat Min Mat Total Allies . | . . . . Largest Group . | . . . . Highest-Rated Group . | . . . . Highest-Rated Ally . | . . . . Total Orders . | . . . . Ally Attacks . | . . . . Total Damage . | . . . . Kills . | . . . . Allies Corrupted . | . . . . Allies Melted . | . . . . Intel | -11 -10 -10 -9 ------- Run | Scr Mat Min Mat Robot Analysis Total . | . . . . Derelict Logs Recovered . | . . . . Drone Launches . | . . . . Drone Recoveries . | . . . . Exploration | -11 -10 -10 -9 ------------- Run | Scr Mat Min Mat Turns Passed 663 | 67 64 193 339 Spaces Moved 534 | 59 66 201 208 Core 37 | 8 . . 29 Treads . | . . . . Legs 179 | . . . 179 Wheels 318 | 51 66 201 . Hover . | . . . . Flight . | . . . . Fastest Speed 50 | 50 90 90 120 Average Speed 102 | 84 90 90 124 Slowest Speed 150 | 100 90 90 150 Overloaded Moves . | . . . . Propulsion Burnouts . | . . . . Robots Hopped . | . . . . Cave-ins Triggered . | . . . . Exploration Rate (%) 19 | 4 15 31 28 Regions Visited 3 Branch Regions 1 Pre-discovered Areas . | . . . . Known Exits Taken . | . . . . Unknown Exits Taken 3 | 1 1 1 . Scrap Searched . | . . . . Spaces Dug . | . . . . Terrain Destroyed . | . . . . Melee . | . . . . Projectile . | . . . . AOE . | . . . . Actions | -11 -10 -10 -9 --------- Run | Scr Mat Min Mat Total 619 | 76 68 212 263 Wait 18 | . . 9 9 Move 531 | 58 65 200 208 Hop . | . . . . Pick Up 24 | 11 1 2 10 Fast Attach . | . . . . Attach 11 | 6 1 . 4 Detach . | . . . . Swap 8 | . . . 8 Drop 10 | 1 . . 9 Fire 1 | . 1 . . Melee 15 | . . . 15 Ram 1 | . . 1 . Kick . | . . . . Crush . | . . . . Escape Stasis . | . . . . Rewire . | . . . . Trap . | . . . . Miscellaneous . | . . . . Route ------- -11/Scrapyard -10/Materials -10/Mines -9/Materials History --------- Turn | Location | Event 7 | -11/Scrapyard | Discovered new exit (range 16) 68 | -11/Scrapyard | Entered Materials 121 | -10/Materials | Discovered new exit (range 12) 132 | -10/Materials | Entered Mines 170 | -10/Mines | Met a Derelict bent on vengeance 183 | -10/Mines | Found a hidden stash of uninstalled traps 196 | -10/Mines | Discovered new exit (range 5) 281 | -10/Mines | Assembled infested the area 286 | -10/Mines | Assisted by a Guerilla fighting off Assembled 312 | -10/Mines | Build established: Mutant 325 | -10/Mines | Entered Materials 325 | -9/Materials | Evolved 2 slots: Propulsion x2 611 | -9/Materials | Core integrity fell below 50% 625 | -9/Materials | Core integrity fell below 20% 650 | -9/Materials | Lost 5 parts (1p3n1w) 664 | -9/Materials | Destroyed by G-34 Mercenary with Small Laser Last Messages --------------- 00508_ R-06 Scavenger collects Wheel. 00539_ W-16 Scout sends out distress signal. 00541_ K-01 Serf cleans the Matter Filter. 00574_ Med. Laser destroyed. 00595_ Aluminum Leg destroyed. 00598_ Ion Engine destroyed. 00598_ S-10 Pest destroyed. 00601_ Acquired 17 matter. 00603_ U-05 Engineer builds a Door. 00612_ Destroyed Flight Unit. 00615_ S-10 Pest destroyed. 00617_ Acquired 14 matter. 00619_ Fusion Modulator explodes. 00619_ Aluminum Leg destroyed. 00619_ Fusion Modulator explodes. 00619_ S-10 Pest destroyed. 00619_ K-01 Serf collects debris. 00624_ U-05 Engineer builds a Wall. 00644_ Dropped Axe. 00650_ Acquired EM Shotgun. Map ----- +----------------------------------------------------+ | ?????????????????????????????????? | | ?????????????????????????????????? | | #+###????????????????????????????????????????? | | ?????????????????????????????????????????????? | | ?????????????????????????????????????????????? | | ?????????????????????????????????????????????? | | ?????????????????????????????????????????????? | | ?????????????????????????????????????????????? | | ?????????????????????????????????????????????? | | ????????????????????????????????? #??????????? | | ????????????????????????????????? #??????????? | | ???????????????????????????????? #??????????? | | ??????????????????????????????? #??????????? | | ??????????????????????######### #??????????? | | ?????????????????????? #??????????? | | ????????????########### ##?????????? | | ????????????# "T" # #?????????? | | ????????????# # #?????????? | | ????????????# """/""" /gw #?????????? | | ??######????# """ """ #ga #?????????? | | ### # ###?# """ """ # #?????????? | | #"""""""""#?# # ##########?????????? | | #" =### # #??????????????????? | | " "## # #??????????????????? | | "" ####+####### #??????????????????? | | " ##?# #?????# @#??????????????????? | | # #?# #?????# #??????????????????? | | "### #?????# #??????????????????? | | " #?????# #??????????????????? | | ""#####?????#t #??????????????????? | | " "##?????????# #??????????????????? | | ##"""""""""#??????????# ??????????????????? | | ?#"# ""#??????????# ??????????????????? | | ??????????k ??????????????????? | | T ????????? ??????????????????? | | ???????? ?????????????????? | | #### ##+##???????"""" ?????????????????? | | ???## ##???????????"""" ?????????????????? | | ????# ?????????????"""" ?????????????????? | | ????# ????????????????? ??????????????????? | | ????# ????????????????? ??????????????????? | | ????# ????????????????? ??????????????????? | | ???? ????????????????? ??????????????????? | | ???? ?????????????????????????????????????? | | ???? ?????????????????????????????????????? | | ?????? ?????????????????????????????????????? | | ?????????????????????????????????????????????? | | ?????????????????????????????????????????????? | | ?????????????????????????????????????????????? | | ?????????????????????????????????????????????? | +----------------------------------------------------+ Best States ------------- Heat Dissipation 28 Energy Generation 10 Energy Capacity 250 Matter Stores 300 Matter Capacity 300 Sight Range 18 Terrain Scan Density 10 Armor Coverage 150 Evasion (%) 50 Item Schematics ----------------- None Robot Schematics ------------------ None Fabricated ------------ Nothing Alien Tech Used ----------------- None Achievements -------------- None Challenges ------------ None Game ------ Seed DefenseSniperProtection Manual? 0 Play Time 00:10:37 Cumulative 4.6 hours Start 2020.07.11 @ 22:30:54 End 2020.07.11 @ 22:37:43 Sessions 1 Manual Loads 0 Difficulty Rogue Special Mode None Game No. 21 Rogue 21 Adventurer 0 Explorer 0 Win Type - Total 0 Types 0/0/0/0/0/0/0 Lore% 11 Gallery% 13 Achievement% 14 Wizard Run 0 Options --------- ASCII 0 Keyboard 0 Movement Numpad Keybinds 0 Fullscreen 1 Font 18/SmallcapsGlow Map View 76x50 Tactical HUD 1 Map Filters NONE Filters NONE Steam 1 RUN: d7d0d7eb-f435-41dc-bfb7-4aa5bb40523c